[Event "Late-Titled-Tuesday-Blitz-September-05-2023"]
[Site "Chess.com"]
[Date "2023.09.05"]
[Round "2"]
[White "picturesquecheck"]
[Black "MKlose11"]
[Result "1-0"]
[WhiteElo "2313"]
[BlackElo "2628"]
[TimeControl "180+1"]
[EndTime "14:18:48 PDT"]
[Termination "picturesquecheck won on time"]

1. e4 {[%clk 0:03:00.9]} 1... e6 {[%clk 0:02:59.9]} 2. d4 {[%clk 0:02:59.8]}
2... d5 {[%clk 0:03:00]} 3. Nd2 {[%clk 0:03:00.5]} 3... Be7 {[%clk 0:02:53.5]}
4. e5 {[%clk 0:02:58.5]} 4... c5 {[%clk 0:02:53.2]} 5. Qg4 {[%clk 0:02:58.6]}
5... g5 {[%clk 0:02:48.4]} 6. Qh5 {[%clk 0:02:58.2]} 6... cxd4 {[%clk
0:02:45.2]} 7. Ndf3 {[%clk 0:02:57.9]} 7... Nc6 {[%clk 0:02:41.8]} 8. Nh3 {[%clk
0:02:49.4]} 8... Qc7 {[%clk 0:02:19.4]} 9. Nhxg5 {[%clk 0:02:48.2]} 9... Nxe5
{[%clk 0:02:17.9]} 10. Bb5+ {[%clk 0:02:41]} 10... Bd7 {[%clk 0:02:09.7]} 11.
Bxd7+ {[%clk 0:02:37.3]} 11... Kxd7 {[%clk 0:02:10.6]} 12. O-O {[%clk
0:02:35.7]} 12... Nf6 {[%clk 0:01:58.8]} 13. Nxe5+ {[%clk 0:02:28.8]} 13... Qxe5
{[%clk 0:01:56.9]} 14. f4 {[%clk 0:02:26.1]} 14... Qf5 {[%clk 0:01:47.8]} 15.
Qe2 {[%clk 0:02:17.2]} 15... Ne4 {[%clk 0:01:35.3]} 16. Nf3 {[%clk 0:01:57.4]}
16... a6 {[%clk 0:01:19.2]} 17. Nxd4 {[%clk 0:01:48.7]} 17... Bc5 {[%clk
0:01:18.7]} 18. Be3 {[%clk 0:01:49.1]} 18... Bxd4 {[%clk 0:01:14.4]} 19. Bxd4
{[%clk 0:01:50]} 19... Rhg8 {[%clk 0:01:15]} 20. c4 {[%clk 0:01:43.8]} 20... Qg4
{[%clk 0:01:10.9]} 21. Qxg4 {[%clk 0:01:38.8]} 21... Rxg4 {[%clk 0:01:10.4]} 22.
cxd5 {[%clk 0:01:39.5]} 22... exd5 {[%clk 0:01:10.6]} 23. Rad1 {[%clk 0:01:39]}
23... f5 {[%clk 0:01:02]} 24. g3 {[%clk 0:01:26.6]} 24... Rgg8 {[%clk
0:00:58.2]} 25. Be5 {[%clk 0:01:25.5]} 25... Ke6 {[%clk 0:00:58.2]} 26. Rd3
{[%clk 0:01:22.9]} 26... Rac8 {[%clk 0:00:55]} 27. Rfd1 {[%clk 0:01:21.7]} 27...
Rgd8 {[%clk 0:00:50.6]} 28. Rb3 {[%clk 0:01:17.5]} 28... b5 {[%clk 0:00:49.4]}
29. a4 {[%clk 0:01:14.6]} 29... Nc5 {[%clk 0:00:42.8]} 30. Re3 {[%clk
0:01:13.1]} 30... Ne4 {[%clk 0:00:38.3]} 31. axb5 {[%clk 0:01:11.5]} 31... axb5
{[%clk 0:00:39.2]} 32. Rb3 {[%clk 0:01:06.7]} 32... Rc5 {[%clk 0:00:39.2]} 33.
Bd4 {[%clk 0:01:02.5]} 33... Rc2 {[%clk 0:00:26.8]} 34. Rxb5 {[%clk 0:01:01.4]}
34... Rdc8 {[%clk 0:00:27.5]} 35. Rb6+ {[%clk 0:00:58.6]} 35... Kf7 {[%clk
0:00:24.9]} 36. Rb7+ {[%clk 0:00:55.8]} 36... Kg6 {[%clk 0:00:25.1]} 37. Ra1
{[%clk 0:00:40.3]} 37... Rc1+ {[%clk 0:00:17.7]} 38. Rxc1 {[%clk 0:00:40.3]}
38... Rxc1+ {[%clk 0:00:18.6]} 39. Kg2 {[%clk 0:00:41]} 39... Rc2+ {[%clk
0:00:18.1]} 40. Kh3 {[%clk 0:00:41.2]} 40... Rd2 {[%clk 0:00:17.7]} 41. Ba7
{[%clk 0:00:30.2]} 41... h6 {[%clk 0:00:17.7]} 42. b4 {[%clk 0:00:27.4]} 42...
d4 {[%clk 0:00:17.6]} 43. g4 {[%clk 0:00:21.8]} 43... Rd3+ {[%clk 0:00:16.5]}
44. Kg2 {[%clk 0:00:21.3]} 44... fxg4 {[%clk 0:00:16.7]} 45. Rd7 {[%clk
0:00:20.9]} 45... Rd2+ {[%clk 0:00:16.7]} 46. Kg1 {[%clk 0:00:21]} 46... d3
{[%clk 0:00:17.4]} 47. Be3 {[%clk 0:00:19.2]} 47... Rb2 {[%clk 0:00:13.5]} 48.
Rxd3 {[%clk 0:00:18.3]} 48... Rxb4 {[%clk 0:00:13.9]} 49. Rd4 {[%clk 0:00:17.2]}
49... Rxd4 {[%clk 0:00:06.2]} 50. Bxd4 {[%clk 0:00:18.1]} 50... Kf5 {[%clk
0:00:07]} 51. Be3 {[%clk 0:00:18.4]} 51... Nf6 {[%clk 0:00:05.6]} 52. Kg2 {[%clk
0:00:18.4]} 52... Nd5 {[%clk 0:00:05.2]} 53. Kf2 {[%clk 0:00:18.2]} 53... Nxf4
{[%clk 0:00:05]} 54. Kg3 {[%clk 0:00:15.6]} 54... Ne2+ {[%clk 0:00:03.9]} 55.
Kh4 {[%clk 0:00:15]} 1-0

[Event "Late-Titled-Tuesday-Blitz-September-05-2023"]
[Site "Chess.com"]
[Date "2023.09.05"]
[Round "2"]
[White "onnoelgersma"]
[Black "sergiochess83"]
[Result "0-1"]
[WhiteElo "2570"]
[BlackElo "2934"]
[TimeControl "180+1"]
[EndTime "14:18:50 PDT"]
[Termination "sergiochess83 won by resignation"]

1. e4 {[%clk 0:03:00.2]} 1... c5 {[%clk 0:02:58.6]} 2. Nf3 {[%clk 0:03:00.5]}
2... e6 {[%clk 0:02:58.5]} 3. g3 {[%clk 0:02:59.7]} 3... Nc6 {[%clk 0:02:56.6]}
4. Bg2 {[%clk 0:02:59.7]} 4... Nf6 {[%clk 0:02:53.4]} 5. Qe2 {[%clk 0:03:00]}
5... e5 {[%clk 0:02:50.2]} 6. O-O {[%clk 0:02:59.2]} 6... d6 {[%clk 0:02:48.4]}
7. Nc3 {[%clk 0:02:59.5]} 7... Be7 {[%clk 0:02:47.9]} 8. Nd5 {[%clk 0:02:59.3]}
8... O-O {[%clk 0:02:43.3]} 9. c3 {[%clk 0:02:57.8]} 9... a5 {[%clk 0:02:43.2]}
10. a4 {[%clk 0:02:52.7]} 10... Nxd5 {[%clk 0:02:32.5]} 11. exd5 {[%clk
0:02:52.4]} 11... Nb8 {[%clk 0:02:33.2]} 12. d3 {[%clk 0:02:51.8]} 12... Nd7
{[%clk 0:02:28.8]} 13. Nd2 {[%clk 0:02:48.3]} 13... f5 {[%clk 0:02:20.7]} 14.
Nc4 {[%clk 0:02:46.7]} 14... Nb6 {[%clk 0:02:12.6]} 15. Nxb6 {[%clk 0:02:42.5]}
15... Qxb6 {[%clk 0:02:12.4]} 16. f4 {[%clk 0:02:43.4]} 16... Bf6 {[%clk
0:02:05.3]} 17. Kh1 {[%clk 0:02:32.3]} 17... Bd7 {[%clk 0:02:04.9]} 18. fxe5
{[%clk 0:02:27.7]} 18... Bxe5 {[%clk 0:02:00.8]} 19. Qf2 {[%clk 0:02:26.5]}
19... Rae8 {[%clk 0:01:54]} 20. Be3 {[%clk 0:02:17]} 20... Qa6 {[%clk
0:01:45.4]} 21. d4 {[%clk 0:02:13.2]} 21... cxd4 {[%clk 0:01:45.1]} 22. Bxd4
{[%clk 0:02:14.1]} 22... Bxd4 {[%clk 0:01:38.9]} 23. Qxd4 {[%clk 0:02:15]} 23...
Re5 {[%clk 0:01:39.2]} 24. b4 {[%clk 0:02:04.6]} 24... b6 {[%clk 0:01:19.9]} 25.
bxa5 {[%clk 0:01:49.8]} 25... bxa5 {[%clk 0:01:12.5]} 26. Rae1 {[%clk
0:01:49.1]} 26... Rfe8 {[%clk 0:01:09.3]} 27. Rxe5 {[%clk 0:01:47.1]} 27... Rxe5
{[%clk 0:01:08.1]} 28. c4 {[%clk 0:01:46.2]} 28... Qc8 {[%clk 0:00:44.2]} 29.
Qb6 {[%clk 0:01:45.1]} 29... Qc5 {[%clk 0:00:37.6]} 30. Qxc5 {[%clk 0:01:00]}
30... dxc5 {[%clk 0:00:37.5]} 31. d6 {[%clk 0:01:00.9]} 31... Kf7 {[%clk
0:00:31.9]} 32. Bd5+ {[%clk 0:00:58.2]} 32... Kf6 {[%clk 0:00:21.9]} 33. Rb1
{[%clk 0:00:55.6]} 33... Re8 {[%clk 0:00:08.2]} 34. Rb7 {[%clk 0:00:45.8]} 34...
Rd8 {[%clk 0:00:08.4]} 35. Ra7 {[%clk 0:00:46.2]} 35... Ke5 {[%clk 0:00:06.8]}
36. Rxa5 {[%clk 0:00:44.7]} 36... Kxd6 {[%clk 0:00:07.1]} 37. Ra7 {[%clk
0:00:41.8]} 37... Rb8 {[%clk 0:00:04.7]} 38. a5 {[%clk 0:00:39.4]} 38... Rb2
{[%clk 0:00:04.4]} 39. a6 {[%clk 0:00:35.4]} 39... Ra2 {[%clk 0:00:04.8]} 40.
Ra8 {[%clk 0:00:32.7]} 40... g5 {[%clk 0:00:05.1]} 41. a7 {[%clk 0:00:30.2]}
41... f4 {[%clk 0:00:05]} 42. gxf4 {[%clk 0:00:30.4]} 42... gxf4 {[%clk
0:00:05.9]} 43. Kg1 {[%clk 0:00:31]} 43... h5 {[%clk 0:00:05.5]} 44. h4 {[%clk
0:00:27.7]} 44... Kc7 {[%clk 0:00:03.8]} 45. Rf8 {[%clk 0:00:17.3]} 45... Rxa7
{[%clk 0:00:02.9]} 46. Rxf4 {[%clk 0:00:17.7]} 46... Ra2 {[%clk 0:00:02]} 47.
Rf6 {[%clk 0:00:15.6]} 47... Bg4 {[%clk 0:00:02]} 48. Rc6+ {[%clk 0:00:14.1]}
48... Kd7 {[%clk 0:00:02.5]} 49. Rxc5 {[%clk 0:00:15]} 49... Kd6 {[%clk
0:00:03.4]} 50. Rc6+ {[%clk 0:00:15.2]} 50... Ke5 {[%clk 0:00:03.6]} 51. Rg6
{[%clk 0:00:15.1]} 51... Kf4 {[%clk 0:00:03.9]} 52. Kf1 {[%clk 0:00:14.1]} 52...
Kg3 {[%clk 0:00:04.1]} 53. Ke1 {[%clk 0:00:14.1]} 53... Re2+ {[%clk 0:00:04.3]}
54. Kf1 {[%clk 0:00:13.9]} 54... Rd2 {[%clk 0:00:04.7]} 55. Re6 {[%clk
0:00:07.8]} 55... Bxe6 {[%clk 0:00:04.9]} 56. Bxe6 {[%clk 0:00:08.7]} 56... Kxh4
{[%clk 0:00:05.2]} 57. c5 {[%clk 0:00:08.9]} 57... Rc2 {[%clk 0:00:05.2]} 0-1

[Event "Late-Titled-Tuesday-Blitz-September-05-2023"]
[Site "Chess.com"]
[Date "2023.09.05"]
[Round "2"]
[White "nevermind242"]
[Black "Jaka_Brilej"]
[Result "1-0"]
[WhiteElo "2321"]
[BlackElo "2477"]
[TimeControl "180+1"]
[EndTime "14:18:50 PDT"]
[Termination "nevermind242 won by checkmate"]

1. Nf3 {[%clk 0:02:59.9]} 1... Nf6 {[%clk 0:02:59.8]} 2. g3 {[%clk 0:03:00.3]}
2... g6 {[%clk 0:02:59.7]} 3. b3 {[%clk 0:03:00.8]} 3... Bg7 {[%clk 0:03:00.2]}
4. Bb2 {[%clk 0:03:01.4]} 4... d6 {[%clk 0:03:00.8]} 5. d4 {[%clk 0:03:01]} 5...
O-O {[%clk 0:03:00.6]} 6. Bg2 {[%clk 0:03:01.5]} 6... Nc6 {[%clk 0:02:59.8]} 7.
d5 {[%clk 0:02:59.9]} 7... Nb8 {[%clk 0:02:57.8]} 8. O-O {[%clk 0:02:59.7]} 8...
c5 {[%clk 0:02:57.4]} 9. c4 {[%clk 0:02:58.2]} 9... e6 {[%clk 0:02:55.2]} 10.
dxe6 {[%clk 0:02:52.5]} 10... fxe6 {[%clk 0:02:52.9]} 11. Ng5 {[%clk 0:02:41.3]}
11... h6 {[%clk 0:02:39.4]} 12. Nf3 {[%clk 0:02:04.8]} 12... Nc6 {[%clk
0:02:39.1]} 13. Qc2 {[%clk 0:01:55.1]} 13... g5 {[%clk 0:02:23.3]} 14. a3 {[%clk
0:01:50.9]} 14... d5 {[%clk 0:02:20.9]} 15. cxd5 {[%clk 0:01:48.3]} 15... exd5
{[%clk 0:02:21.8]} 16. Nbd2 {[%clk 0:01:37.1]} 16... b6 {[%clk 0:02:10.6]} 17.
Ne5 {[%clk 0:01:35.3]} 17... Nxe5 {[%clk 0:02:08.1]} 18. Bxe5 {[%clk 0:01:36.2]}
18... Bb7 {[%clk 0:02:01.4]} 19. Rad1 {[%clk 0:01:33.7]} 19... Qe7 {[%clk
0:01:59.3]} 20. Qb2 {[%clk 0:01:15.3]} 20... d4 {[%clk 0:01:55.6]} 21. Bxb7
{[%clk 0:01:12.2]} 21... Qxb7 {[%clk 0:01:56.5]} 22. Bxf6 {[%clk 0:01:09.3]}
22... Rxf6 {[%clk 0:01:55.9]} 23. f3 {[%clk 0:01:08.1]} 23... Raf8 {[%clk
0:01:50.7]} 24. Ne4 {[%clk 0:01:07.2]} 24... Re6 {[%clk 0:01:39.6]} 25. Qc2
{[%clk 0:01:07.7]} 25... g4 {[%clk 0:01:33.5]} 26. Qc4 {[%clk 0:01:04.9]} 26...
Qe7 {[%clk 0:01:16.6]} 27. fxg4 {[%clk 0:01:02.3]} 27... Rxf1+ {[%clk
0:01:14.3]} 28. Rxf1 {[%clk 0:01:03.2]} 28... Kh8 {[%clk 0:01:11.5]} 29. Nf2
{[%clk 0:00:43.6]} 29... Rxe2 {[%clk 0:01:11]} 30. Qd5 {[%clk 0:00:39.2]} 30...
Re1 {[%clk 0:00:51.3]} 31. Qf5 {[%clk 0:00:27.3]} 31... Rxf1+ {[%clk 0:00:50.7]}
32. Kxf1 {[%clk 0:00:28.2]} 32... d3 {[%clk 0:00:39.1]} 33. Nxd3 {[%clk
0:00:23.1]} 33... Qf6 {[%clk 0:00:30.6]} 34. Qxf6 {[%clk 0:00:16.3]} 34... Bxf6
{[%clk 0:00:31.5]} 35. a4 {[%clk 0:00:16.7]} 35... a6 {[%clk 0:00:28.5]} 36. Nf4
{[%clk 0:00:16.6]} 36... b5 {[%clk 0:00:25.5]} 37. axb5 {[%clk 0:00:16.8]} 37...
axb5 {[%clk 0:00:26.4]} 38. Ke2 {[%clk 0:00:17.2]} 38... c4 {[%clk 0:00:22]} 39.
bxc4 {[%clk 0:00:16.6]} 39... bxc4 {[%clk 0:00:22.9]} 40. Nd5 {[%clk 0:00:16.2]}
40... Bd4 {[%clk 0:00:22.2]} 41. Ne7 {[%clk 0:00:09.8]} 41... Kh7 {[%clk
0:00:21.3]} 42. Nf5 {[%clk 0:00:09.8]} 42... Bc5 {[%clk 0:00:20.5]} 43. Kd2
{[%clk 0:00:09.4]} 43... Bb4+ {[%clk 0:00:19.8]} 44. Ke3 {[%clk 0:00:08.9]}
44... Kg6 {[%clk 0:00:20]} 45. Kd4 {[%clk 0:00:09.1]} 45... c3 {[%clk
0:00:20.1]} 46. Kd3 {[%clk 0:00:09.4]} 46... Ba5 {[%clk 0:00:20.4]} 47. h4
{[%clk 0:00:09.8]} 47... h5 {[%clk 0:00:20.5]} 48. Ne7+ {[%clk 0:00:07.5]} 48...
Kf6 {[%clk 0:00:20.3]} 49. Nd5+ {[%clk 0:00:07.8]} 49... Ke5 {[%clk 0:00:21]}
50. Nxc3 {[%clk 0:00:08.1]} 50... hxg4 {[%clk 0:00:20.1]} 51. Ne4 {[%clk
0:00:06.8]} 51... Be1 {[%clk 0:00:19.4]} 52. Ke3 {[%clk 0:00:05.6]} 52... Kf5
{[%clk 0:00:18.3]} 53. h5 {[%clk 0:00:04.5]} 53... Ke6 {[%clk 0:00:15.1]} 54.
Kf4 {[%clk 0:00:04.5]} 54... Kf7 {[%clk 0:00:13.7]} 55. Kxg4 {[%clk 0:00:05]}
55... Kg7 {[%clk 0:00:14]} 56. Kf5 {[%clk 0:00:04.9]} 56... Kh6 {[%clk
0:00:14.2]} 57. g4 {[%clk 0:00:05.8]} 57... Bh4 {[%clk 0:00:12.9]} 58. Nf6
{[%clk 0:00:06.7]} 58... Kg7 {[%clk 0:00:12.1]} 59. g5 {[%clk 0:00:06.8]} 59...
Kh8 {[%clk 0:00:11.5]} 60. g6 {[%clk 0:00:06.7]} 60... Kg7 {[%clk 0:00:10.7]}
61. Ng4 {[%clk 0:00:07.5]} 61... Be7 {[%clk 0:00:10.2]} 62. h6+ {[%clk
0:00:08.4]} 62... Kg8 {[%clk 0:00:08.3]} 63. Nf6+ {[%clk 0:00:08.3]} 63... Kh8
{[%clk 0:00:07.6]} 64. g7# {[%clk 0:00:08.9]} 1-0

[Event "Late-Titled-Tuesday-Blitz-September-05-2023"]
[Site "Chess.com"]
[Date "2023.09.05"]
[Round "2"]
[White "in_shambles"]
[Black "Schattman"]
[Result "1/2-1/2"]
[WhiteElo "2115"]
[BlackElo "2408"]
[TimeControl "180+1"]
[EndTime "14:18:51 PDT"]
[Termination "Game drawn by repetition"]

1. d4 {[%clk 0:03:00.9]} 1... Nf6 {[%clk 0:02:59.9]} 2. c4 {[%clk 0:02:57.1]}
2... g6 {[%clk 0:03:00.1]} 3. Nc3 {[%clk 0:02:56.7]} 3... d5 {[%clk 0:03:00.3]}
4. cxd5 {[%clk 0:02:57.5]} 4... Nxd5 {[%clk 0:03:01]} 5. e4 {[%clk 0:02:57.9]}
5... Nxc3 {[%clk 0:03:01.6]} 6. bxc3 {[%clk 0:02:58.3]} 6... Bg7 {[%clk
0:03:02.5]} 7. Bc4 {[%clk 0:02:58.5]} 7... c5 {[%clk 0:03:02.8]} 8. Ne2 {[%clk
0:02:57]} 8... Nc6 {[%clk 0:03:02.9]} 9. Be3 {[%clk 0:02:56.1]} 9... O-O {[%clk
0:03:02.3]} 10. O-O {[%clk 0:02:55.8]} 10... b6 {[%clk 0:03:02.7]} 11. Rc1
{[%clk 0:02:52.9]} 11... Bb7 {[%clk 0:03:02.2]} 12. Qd2 {[%clk 0:02:49.3]} 12...
Qc7 {[%clk 0:02:53.7]} 13. Bf4 {[%clk 0:02:36.6]} 13... e5 {[%clk 0:02:52.8]}
14. Bg3 {[%clk 0:02:36.7]} 14... Rad8 {[%clk 0:02:49.3]} 15. Bd5 {[%clk
0:02:10.2]} 15... Na5 {[%clk 0:02:42.5]} 16. Bxb7 {[%clk 0:01:55.5]} 16... Nxb7
{[%clk 0:02:40.8]} 17. Rfd1 {[%clk 0:01:49.6]} 17... Qd7 {[%clk 0:02:38.7]} 18.
d5 {[%clk 0:01:39.6]} 18... Nd6 {[%clk 0:02:33.3]} 19. Qd3 {[%clk 0:01:32.7]}
19... f5 {[%clk 0:02:25.3]} 20. f3 {[%clk 0:01:24.3]} 20... Bh6 {[%clk
0:02:17.2]} 21. Rb1 {[%clk 0:01:11.6]} 21... c4 {[%clk 0:02:17.2]} 22. Qc2
{[%clk 0:01:09.4]} 22... Be3+ {[%clk 0:02:10]} 23. Kh1 {[%clk 0:01:07.3]} 23...
Qe7 {[%clk 0:01:57.8]} 24. Ng1 {[%clk 0:00:33.4]} 24... f4 {[%clk 0:01:49.9]}
25. Bf2 {[%clk 0:00:27.8]} 25... Bxf2 {[%clk 0:01:49.2]} 26. Qxf2 {[%clk
0:00:28.7]} 26... g5 {[%clk 0:01:49.6]} 27. a4 {[%clk 0:00:18.8]} 27... Rf7
{[%clk 0:01:42.6]} 28. Rb4 {[%clk 0:00:17.9]} 28... h5 {[%clk 0:01:37.4]} 29.
Ra1 {[%clk 0:00:16.6]} 29... g4 {[%clk 0:01:35.7]} 30. fxg4 {[%clk 0:00:14.7]}
30... hxg4 {[%clk 0:01:35.5]} 31. Ne2 {[%clk 0:00:14.9]} 31... Nxe4 {[%clk
0:01:29.3]} 32. Qe1 {[%clk 0:00:13.5]} 32... Qg5 {[%clk 0:01:20.9]} 33. Rxc4
{[%clk 0:00:11.8]} 33... Nd6 {[%clk 0:01:17]} 34. Rb4 {[%clk 0:00:11.3]} 34...
e4 {[%clk 0:01:10.1]} 35. Nd4 {[%clk 0:00:08.1]} 35... Qxd5 {[%clk 0:01:02.8]}
36. Qh4 {[%clk 0:00:07]} 36... Rdf8 {[%clk 0:00:43.1]} 37. Qxg4+ {[%clk
0:00:07.1]} 37... Rg7 {[%clk 0:00:43.4]} 38. Qe2 {[%clk 0:00:06.4]} 38... f3
{[%clk 0:00:42]} 39. gxf3 {[%clk 0:00:05.5]} 39... exf3 {[%clk 0:00:42.1]} 40.
Qe6+ {[%clk 0:00:05.5]} 40... Qxe6 {[%clk 0:00:40.2]} 41. Nxe6 {[%clk
0:00:06.4]} 41... f2 {[%clk 0:00:37.4]} 42. Nxf8 {[%clk 0:00:06.1]} 42... Kxf8
{[%clk 0:00:33.6]} 43. Rf4+ {[%clk 0:00:05.8]} 43... Rf7 {[%clk 0:00:34.5]} 44.
Rxf7+ {[%clk 0:00:05.7]} 44... Kxf7 {[%clk 0:00:35.4]} 45. Rf1 {[%clk 0:00:06]}
45... Ke6 {[%clk 0:00:36.3]} 46. Rxf2 {[%clk 0:00:06.2]} 46... Ne4 {[%clk
0:00:37.2]} 47. Re2 {[%clk 0:00:06.4]} 47... Kd5 {[%clk 0:00:37.8]} 48. Kg2
{[%clk 0:00:06.8]} 48... Nxc3 {[%clk 0:00:36.4]} 49. Re7 {[%clk 0:00:07.4]}
49... Nxa4 {[%clk 0:00:36]} 50. Rxa7 {[%clk 0:00:07.5]} 50... Nc5 {[%clk
0:00:36.9]} 51. h4 {[%clk 0:00:07.1]} 51... Ne6 {[%clk 0:00:35]} 52. h5 {[%clk
0:00:06.9]} 52... Nf4+ {[%clk 0:00:34.9]} 53. Kg3 {[%clk 0:00:07]} 53... Nxh5+
{[%clk 0:00:35.2]} 54. Kg4 {[%clk 0:00:07.7]} 54... Nf6+ {[%clk 0:00:35.2]} 55.
Kf5 {[%clk 0:00:08]} 55... Ne4 {[%clk 0:00:32.4]} 56. Rd7+ {[%clk 0:00:06.6]}
56... Nd6+ {[%clk 0:00:32.5]} 57. Kf6 {[%clk 0:00:05.5]} 57... Kc6 {[%clk
0:00:32.6]} 58. Rd8 {[%clk 0:00:04.9]} 58... Nc4 {[%clk 0:00:32.4]} 59. Ke7
{[%clk 0:00:04.3]} 59... b5 {[%clk 0:00:31.8]} 60. Rc8+ {[%clk 0:00:03.7]} 60...
Kd5 {[%clk 0:00:31.4]} 61. Rd8+ {[%clk 0:00:03.6]} 61... Kc5 {[%clk 0:00:31.5]}
62. Rc8+ {[%clk 0:00:03.5]} 62... Kd5 {[%clk 0:00:31.7]} 63. Rd8+ {[%clk
0:00:03.7]} 63... Kc5 {[%clk 0:00:32]} 64. Rc8+ {[%clk 0:00:04]} 64... Kd5
{[%clk 0:00:32.3]} 1/2-1/2

[Event "Late-Titled-Tuesday-Blitz-September-05-2023"]
[Site "Chess.com"]
[Date "2023.09.05"]
[Round "2"]
[White "BillieKimbah"]
[Black "IMRosen"]
[Result "1-0"]
[WhiteElo "3044"]
[BlackElo "2601"]
[TimeControl "180+1"]
[EndTime "14:18:52 PDT"]
[Termination "BillieKimbah won on time"]

1. d4 {[%clk 0:03:00.9]} 1... e6 {[%clk 0:03:00.9]} 2. Nf3 {[%clk 0:03:01]} 2...
Ne7 {[%clk 0:03:00.4]} 3. e4 {[%clk 0:03:00.3]} 3... d6 {[%clk 0:02:59.1]} 4.
Bd3 {[%clk 0:02:59.5]} 4... Nd7 {[%clk 0:02:59.4]} 5. h4 {[%clk 0:02:57.9]} 5...
Ng6 {[%clk 0:02:56.8]} 6. h5 {[%clk 0:02:57.3]} 6... Ne7 {[%clk 0:02:57.3]} 7.
c4 {[%clk 0:02:51.8]} 7... Nb6 {[%clk 0:02:56.6]} 8. Nc3 {[%clk 0:02:51.7]} 8...
Bd7 {[%clk 0:02:55.5]} 9. h6 {[%clk 0:02:51.5]} 9... Ng6 {[%clk 0:02:52.5]} 10.
Bg5 {[%clk 0:02:49.5]} 10... f6 {[%clk 0:02:49]} 11. Be3 {[%clk 0:02:45.2]}
11... e5 {[%clk 0:02:47.4]} 12. hxg7 {[%clk 0:02:44.5]} 12... Bxg7 {[%clk
0:02:47.5]} 13. d5 {[%clk 0:02:41.2]} 13... Bg4 {[%clk 0:02:41.9]} 14. Be2
{[%clk 0:02:38.2]} 14... Nd7 {[%clk 0:02:38.8]} 15. Nh4 {[%clk 0:02:33.3]} 15...
Nxh4 {[%clk 0:02:19.8]} 16. Bxg4 {[%clk 0:02:22.7]} 16... Nxg2+ {[%clk
0:02:19.2]} 17. Kd2 {[%clk 0:02:23.3]} 17... Nxe3 {[%clk 0:02:15.9]} 18. fxe3
{[%clk 0:02:23.4]} 18... Qe7 {[%clk 0:01:57.1]} 19. Qa4 {[%clk 0:02:00.9]} 19...
a6 {[%clk 0:01:47.4]} 20. b4 {[%clk 0:02:00.4]} 20... O-O-O {[%clk 0:01:38.5]}
21. b5 {[%clk 0:02:00.2]} 21... Kb8 {[%clk 0:01:23.9]} 22. bxa6 {[%clk
0:01:48.9]} 22... Nc5 {[%clk 0:01:24.3]} 23. Qa5 {[%clk 0:01:49.1]} 23... b6
{[%clk 0:00:58.3]} 24. Rab1 {[%clk 0:01:46.9]} 24... Ka7 {[%clk 0:00:49.3]} 25.
Qb5 {[%clk 0:01:35.6]} 25... Qe8 {[%clk 0:00:43.9]} 26. Bf5 {[%clk 0:01:26.9]}
26... h5 {[%clk 0:00:40.5]} 27. a4 {[%clk 0:01:24.5]} 27... Bh6 {[%clk
0:00:35.2]} 28. a5 {[%clk 0:01:23.1]} 28... Qxb5 {[%clk 0:00:35.2]} 29. Nxb5+
{[%clk 0:01:23.1]} 29... Kxa6 {[%clk 0:00:33.4]} 30. Nxc7+ {[%clk 0:01:09]}
30... Kb7 {[%clk 0:00:25.6]} 31. Ne6 {[%clk 0:01:09.1]} 31... Rb8 {[%clk
0:00:12.9]} 32. Rxb6+ {[%clk 0:01:07.7]} 32... Ka7 {[%clk 0:00:13.1]} 33. Nxc5
{[%clk 0:01:03.6]} 33... dxc5 {[%clk 0:00:13.1]} 34. Rhb1 {[%clk 0:00:54.4]}
34... Rxb6 {[%clk 0:00:12.7]} 35. Rxb6 {[%clk 0:00:55.3]} 35... Bg5 {[%clk
0:00:11.5]} 36. d6 {[%clk 0:00:48.6]} 36... Rd8 {[%clk 0:00:03.9]} 37. d7 {[%clk
0:00:48.5]} 37... Bh6 {[%clk 0:00:03.8]} 38. Rxf6 {[%clk 0:00:46.6]} 38... Bf8
{[%clk 0:00:04.4]} 39. Ke2 {[%clk 0:00:43.7]} 39... h4 {[%clk 0:00:04]} 40. Kf3
{[%clk 0:00:43.6]} 40... Be7 {[%clk 0:00:04.4]} 41. Rf7 {[%clk 0:00:39.6]} 41...
Bg5 {[%clk 0:00:04.3]} 42. Rg7 {[%clk 0:00:38.2]} 42... Bf6 {[%clk 0:00:03.8]}
43. Rg6 {[%clk 0:00:38.5]} 43... Be7 {[%clk 0:00:04.4]} 44. Kg4 {[%clk
0:00:36.9]} 44... Kb7 {[%clk 0:00:04.4]} 45. Kh3 {[%clk 0:00:36.3]} 45... Kc7
{[%clk 0:00:04.6]} 46. a6 {[%clk 0:00:34.9]} 46... Bd6 {[%clk 0:00:04.8]} 47. a7
{[%clk 0:00:26.2]} 47... Ra8 {[%clk 0:00:05.4]} 48. Rg7 {[%clk 0:00:26.6]} 48...
Bf8 {[%clk 0:00:02]} 49. Rf7 {[%clk 0:00:24.9]} 49... Bd6 {[%clk 0:00:01.5]} 50.
d8=Q+ {[%clk 0:00:24.2]} 50... Kxd8 {[%clk 0:00:01.5]} 51. Rd7+ {[%clk
0:00:24.4]} 51... Ke8 {[%clk 0:00:01.5]} 52. Rxd6 {[%clk 0:00:24.7]} 52... Rxa7
{[%clk 0:00:02.3]} 53. Rd5 {[%clk 0:00:24.4]} 53... Ke7 {[%clk 0:00:02.6]} 54.
Rxe5+ {[%clk 0:00:24.2]} 54... Kf6 {[%clk 0:00:03.3]} 55. Rxc5 {[%clk
0:00:24.2]} 55... Kg5 {[%clk 0:00:02.2]} 56. Bg4+ {[%clk 0:00:21.1]} 56... Kf6
{[%clk 0:00:01.9]} 57. Kxh4 {[%clk 0:00:20.7]} 57... Ra3 {[%clk 0:00:02.8]} 58.
e5+ {[%clk 0:00:20]} 58... Kg7 {[%clk 0:00:02.4]} 59. Rc7+ {[%clk 0:00:20]}
59... Kh6 {[%clk 0:00:02.4]} 60. Rc6+ {[%clk 0:00:19.7]} 60... Kg7 {[%clk
0:00:02.6]} 61. Kg5 {[%clk 0:00:20]} 61... Rxe3 {[%clk 0:00:03.3]} 62. Rc7+
{[%clk 0:00:20.1]} 62... Kf8 {[%clk 0:00:01.8]} 63. Kf6 {[%clk 0:00:20.3]} 1-0